bitfinex-derivatives/quotes_BNBF0:USTF0_20250303
["timestamp","ask_amount","ask_price","bid_price","bid_amount"]
[1740994906518,0.3336169,599.49,598.47,0.26401343]
[1740994906920,1.74281756,599.48,598.47,0.26401343]
[1740994908019,2.67039732,599.47,598.47,0.26401343]
[1740994908216,3.00403092,599.46,598.48,0.26398149]
[1740994908417,2.67039732,599.45,598.49,0.26398149]
[1740994908621,0.3336336,599.46,598.46,0.33419109]
[1740994908622,0.3336336,599.46,598.5,0.26398149]
[1740994908826,0.3336336,599.46,598.51,0.26398149]
[1740994909018,0.3336336,599.46,598.52,0.26398149]
[1740994909216,0.3336336,599.46,598.46,0.33419109]
[1740994909217,0.3336336,599.46,598.53,0.26398149]
[1740994909422,0.3336336,599.46,598.54,0.26398149]
[1740994909627,0.3336336,599.46,598.47,0.26398149]
[1740994909821,0.3336336,599.46,598.48,0.26398149]
[1740994910019,0.3336336,599.46,598.49,0.26398149]
[1740994910224,0.3336336,599.46,598.5,0.26398149]
[1740994910426,0.3336336,599.46,598.51,0.26398149]
[1740994910619,0.3336336,599.46,598.47,0.26398149]
[1740994910825,0.3336336,599.46,598.48,0.26398149]
[1740994911022,0.3336336,599.46,598.47,0.26398149]
[1740994911525,1.74281756,599.48,598.47,0.26398149]
[1740994912319,1.74281756,599.48,598.48,0.26398149]
[1740994912520,1.74281756,599.48,598.49,0.26398149]
[1740994912719,1.74281756,599.48,598.5,0.26398149]
[1740994913027,1.74281756,599.48,598.51,0.26398149]
[1740994913225,1.74281756,599.48,598.52,0.26398149]
[1740994913425,1.74281756,599.48,598.53,0.26398149]
[1740994913626,1.74281756,599.48,598.54,0.26398149]
[1740994913819,1.74281756,599.48,598.55,0.26398149]
[1740994914023,1.74281756,599.48,598.56,0.26398149]
[1740994914225,1.74281756,599.48,598.57,0.26398149]
[1740994914424,1.74281756,599.48,598.58,0.26398149]
[1740994914626,1.74281756,599.48,598.63,1.2343549]
[1740994914828,1.74281756,599.48,598.64,0.26398149]
[1740994915626,2.66888991,599.84,598.64,0.26398149]
[1740994915822,0.3334278,599.83,598.64,0.26398149]
[1740994916029,1.74249758,599.47,598.64,0.26398149]
[1740994916328,0.3334278,599.83,598.64,0.26398149]
[1740994916529,1.74259938,599.46,598.64,0.26398149]
[1740994916828,0.3334278,599.83,598.64,0.26398149]
[1740994917031,0.3334278,599.83,598.65,0.26398149]
[1740994917230,2.66888991,599.82,598.53,0.26398149]
[1740994917427,0.3334278,599.83,598.54,0.26398149]
[1740994917724,0.3334278,599.83,598.55,0.26398149]
[1740994917930,1.74234491,599.82,598.53,0.26398149]
[1740994918129,1.74234491,599.82,598.52,1.2343549]
[1740994918130,0.33343892,599.81,598.54,0.59812791]
[1740994918330,0.33343892,599.81,598.55,0.59812233]
[1740994918531,0.33343892,599.81,598.56,0.26398149]
[1740994919030,1.74233037,599.8,598.56,0.26398149]
[1740994919222,0.33345004,599.79,598.56,0.26398149]
[1740994920027,0.33345004,599.79,598.55,0.33414084]
[1740994920225,0.33345004,599.79,598.56,0.26369455]
[1740994921131,0.33345004,599.79,598.57,0.26378637]
[1740994921331,0.33345004,599.79,598.56,0.26378637]
[1740994921530,0.33345004,599.79,598.57,0.26378637]
[1740994921730,0.33345004,599.79,598.58,0.26378637]
[1740994921928,1.74225041,599.78,598.59,0.26378637]
[1740994922131,0.33346116,599.77,598.59,0.26378637]
[1740994922432,0.33346116,599.77,598.6,0.26378637]
[1740994922627,0.33346116,599.77,598.57,0.26378637]
[1740994922828,0.33346116,599.77,598.58,0.26378637]
[1740994923029,0.33346116,599.77,598.57,0.26378637]
[1740994923225,0.33346116,599.77,598.58,0.26378637]
[1740994923426,0.33346116,599.77,598.57,0.26378637]
[1740994923629,0.33346116,599.77,598.58,0.26378637]
[1740994923829,0.33346116,599.77,598.57,0.26378637]
[1740994924031,0.33346116,599.77,598.56,1.2343549]
[1740994924227,0.33346116,599.77,598.57,0.26340487]
[1740994924632,0.33346116,599.77,598.56,0.26340487]
[1740994924827,0.33346116,599.77,598.57,0.26340487]
[1740994925033,0.33346116,599.77,598.56,0.26340487]
[1740994925233,0.33346116,599.77,598.57,0.26340487]
[1740994925431,0.33346116,599.77,598.58,0.26340487]
[1740994925628,0.33346116,599.77,598.56,0.26340487]
[1740994925833,0.33346116,599.77,598.57,0.26340487]
[1740994926033,0.33346116,599.77,598.58,0.33412409]
[1740994926234,0.33346116,599.77,598.59,0.26340487]
[1740994926535,0.33346116,599.77,598.6,0.33411293]
[1740994926734,0.33346116,599.77,598.61,0.26340487]
[1740994927033,0.33346116,599.77,598.62,0.33410176]
[1740994927235,0.33346116,599.77,598.63,0.26321812]
[1740994927832,0.33346116,599.77,598.64,0.3340906]
[1740994928033,1.74217045,599.76,598.65,0.26321812]
[1740994928635,1.74217045,599.76,598.66,0.33407944]
[1740994929032,1.74217045,599.76,598.67,0.26321812]
[1740994929629,1.74217045,599.76,598.68,0.26321812]
[1740994929836,1.74217045,599.76,598.69,0.26321812]
[1740994930029,1.74217045,599.76,598.7,0.26321812]
[1740994930227,1.74217045,599.76,598.71,0.26321812]
[1740994930431,1.74217045,599.76,598.66,0.33407944]
[1740994930635,0.33346116,599.77,598.67,0.26325437]
[1740994930933,1.7420251,599.75,598.67,0.26325437]
[1740994931334,1.7420251,599.75,598.68,0.33406828]
[1740994931527,1.7420251,599.75,598.69,0.26325437]
[1740994938344,1.7420251,599.75,598.68,0.33406828]
[1740994938547,1.7420251,599.75,598.69,0.26302355]
[1740994939752,0.33346116,599.77,598.69,0.26302355]
[1740994939753,1.74214865,599.74,598.69,0.26302355]
[1740994942546,0.33346116,599.77,598.69,0.26302355]
[1740994942941,1.74230856,599.73,598.69,0.26302355]
[1740994945651,0.33346116,599.77,598.69,0.26302355]
[1740994946055,1.74239579,599.72,598.69,0.26302355]
[1740994948554,0.33346116,599.77,598.69,0.26302355]
[1740994948756,1.74247577,599.71,598.69,0.26302355]
[1740994949752,1.74247577,599.71,598.68,0.33406828]
[1740994950056,1.74247577,599.71,598.69,0.26340524]
[1740994950252,4.41248919,599.71,598.68,0.33406828]
[1740994950457,3.33751677,599.7,598.69,0.26349226]
[1740994950658,2.67001342,599.7,598.69,0.26349226]
[1740994950856,1.74247577,599.71,598.69,0.26349226]
[1740994951256,0.33350008,599.7,598.69,0.26349226]
[1740994951461,0.33350008,599.7,598.7,0.26346239]
[1740994951657,0.33350008,599.7,598.71,0.26346239]
[1740994951863,2.67001342,599.69,598.37,1.2343549]
[1740994952162,2.67001342,599.68,598.38,0.26367491]
[1740994952461,2.67001342,599.67,598.38,0.26367491]
[1740994952657,2.67001342,599.66,598.38,0.26367491]
[1740994952961,3.00354131,599.65,598.38,0.26367491]
[1740994953162,3.00354687,599.64,598.38,0.26367491]
[1740994953363,2.67001342,599.63,598.38,0.26367491]
[1740994953657,2.67001342,599.62,598.38,0.26367491]
[1740994953858,2.67001342,599.61,598.38,0.26367491]
[1740994954058,0.33353345,599.64,598.38,0.26367491]
[1740994954059,2.67073993,599.6,598.38,0.26367491]
[1740994954257,2.67073993,599.63,598.1,0.26367491]
[1740994954461,0.33353345,599.64,598.11,0.26367491]
[1740994954662,0.33353345,599.64,598.12,0.33438106]
[1740994954862,1.74313037,599.62,598.13,0.26370178]
[1740994955957,1.74313037,599.62,598.17,1.2343549]
[1740994956159,1.74313037,599.62,598.18,0.26370178]
[1740994956364,1.74313037,599.62,598.2,0.33433634]
[1740994956564,1.74313037,599.62,598.21,0.26384443]
[1740994957665,0.33353345,599.64,598.21,0.26384443]
[1740994957866,0.33353345,599.64,598.2,0.33433634]
[1740994958065,1.74297031,599.61,598.21,0.26376006]
[1740994960067,1.74297031,599.61,598.23,0.33431957]
[1740994960367,1.74297031,599.61,598.24,0.26376006]
[1740994960567,0.33353345,599.64,598.25,0.26376006]
[1740994960867,0.33353345,599.64,598.26,0.26376006]
[1740994961064,0.33353345,599.64,598.23,0.33431957]
[1740994961065,1.74276664,599.63,598.27,0.26376006]
[1740994961268,1.74276664,599.63,598.28,0.26376006]
[1740994961466,1.74276664,599.63,598.29,0.26376006]
[1740994961664,1.74276664,599.63,598.3,0.26376006]
[1740994961969,1.74276664,599.63,598.31,0.26376006]
[1740994962264,1.74276664,599.63,598.32,0.33426928]
[1740994962464,1.74276664,599.63,598.33,0.26376006]
[1740994963365,1.74276664,599.63,598.34,0.33425811]
[1740994963568,0.33353345,599.64,598.35,0.26376006]
[1740994963968,1.74265028,599.63,598.36,0.33424694]
[1740994964165,1.74265028,599.63,598.37,0.26376006]
[1740994964369,1.74265028,599.63,598.38,0.33423576]
[1740994964567,1.74265028,599.63,598.39,0.26376006]
[1740994964770,1.74265028,599.63,598.4,0.33422459]
[1740994965071,1.74265028,599.63,598.41,0.26376006]
[1740994965770,1.74265028,599.63,598.42,0.59797348]
[1740994965968,1.74265028,599.63,598.43,0.5979679]
[1740994966170,1.74265028,599.63,598.44,0.59756807]
[1740994966371,1.74265028,599.63,598.45,0.59756249]
[1740994966572,0.33353345,599.64,598.45,0.59756249]
[1740994966573,0.33353345,599.64,598.46,0.59755691]
[1740994966768,0.33353345,599.64,598.47,0.26336582]
[1740994966973,1.74245396,599.63,598.47,0.26336582]
[1740994967174,1.74245396,599.63,598.48,0.33417992]
[1740994967370,1.74245396,599.63,598.49,0.26336582]
[1740994967775,1.74245396,599.63,598.5,0.33416875]
[1740994967976,1.74245396,599.63,598.51,0.26336582]
[1740994970974,1.74245396,599.63,598.52,0.33415758]
[1740994971174,1.74245396,599.63,598.53,0.26336582]
[1740994971374,1.74245396,599.63,598.54,0.33414642]
[1740994971578,1.74245396,599.63,598.55,0.26336582]
[1740994971979,1.74245396,599.63,598.56,0.33413525]
[1740994972178,1.74245396,599.63,598.57,0.26336582]
[1740994972572,0.33353345,599.64,598.57,0.26336582]
[1740994972976,1.74233764,599.63,598.57,0.26336582]
[1740994975674,0.33353345,599.64,598.57,0.26336582]
[1740994975876,1.74235218,599.62,598.57,0.26336582]
[1740994977181,1.74235218,599.62,598.58,0.33412409]
[1740994977381,1.74235218,599.62,598.59,0.26336582]
[1740994977582,1.74235218,599.62,598.6,0.33411293]
[1740994977781,1.74235218,599.62,598.61,0.26336582]
[1740994979184,1.74235218,599.62,598.62,0.33410176]
[1740994979382,1.74235218,599.62,598.63,0.26336582]
[1740994979579,1.74235218,599.62,598.64,0.3340906]
[1740994979881,1.74235218,599.62,598.65,0.26336582]
[1740994981984,1.74235218,599.62,598.66,0.26336582]
[1740994982182,1.74235218,599.62,598.67,0.26336582]
[1740994982382,1.74235218,599.62,598.68,0.26336582]
[1740994982580,1.74235218,599.62,598.64,0.3340906]
[1740994982581,1.74235218,599.62,598.69,0.26336582]
[1740994982787,1.74235218,599.62,598.7,0.26336582]
[1740994982986,1.74235218,599.62,598.71,0.26336582]
[1740994983186,1.74235218,599.62,598.72,0.26336582]
[1740994983485,1.74235218,599.62,598.73,0.26336582]
[1740994983685,1.74235218,599.62,598.74,0.26336582]
[1740994983885,1.74235218,599.62,598.75,0.26336582]
[1740994984081,1.74235218,599.62,598.76,0.26336582]
[1740994984286,1.74235218,599.62,598.64,0.3340906]
[1740994984287,1.74235218,599.62,598.79,1.2343549]
[1740994984482,1.74235218,599.62,598.8,0.26336582]
[1740994984683,1.74235218,599.62,598.81,0.26336582]
[1740994984990,1.74235218,599.62,598.82,0.26418561]
[1740994985287,1.74235218,599.62,598.83,0.26418561]
[1740994985589,1.74235218,599.62,598.84,0.26418561]
[1740994985787,1.74235218,599.62,598.85,0.26418561]
[1740994985989,1.74235218,599.62,598.86,0.26418561]
[1740994986189,1.74235218,599.62,598.87,0.26418561]
[1740994986388,1.74235218,599.62,598.88,0.26418561]
[1740994986589,1.74235218,599.62,598.89,0.26408897]
[1740994986889,1.74235218,599.62,598.9,0.26408897]
[1740994987089,1.74235218,599.62,598.76,0.26408897]
[1740994987282,1.74235218,599.62,598.77,0.26408897]
[1740994987487,1.74235218,599.62,598.78,0.26408897]
[1740994987787,1.74235218,599.62,598.79,0.26408897]
[1740994987987,1.74235218,599.62,598.8,0.26408897]
[1740994988182,1.74235218,599.62,598.81,0.26404298]
[1740994988386,1.74235218,599.62,598.82,0.26404298]
[1740994988584,1.74235218,599.62,598.83,0.26404298]
[1740994988790,1.74235218,599.62,598.84,0.26404298]
[1740994988991,1.74235218,599.62,598.77,0.26404298]
[1740994989291,1.74235218,599.62,598.78,0.26404298]
[1740994989491,1.74235218,599.62,598.79,0.26404298]
[1740994989692,1.74235218,599.62,598.76,1.2343549]
[1740994989885,1.74235218,599.62,598.77,0.26421424]
[1740994990485,3.33570776,600.05,598.77,0.26421424]
[1740994990691,0.33331111,600.04,598.77,0.26421424]
[1740994990994,2.07514003,600.04,598.78,0.26421424]
[1740994991191,2.07514003,600.04,598.65,0.26421424]
[1740994991386,2.07514003,600.04,598.66,0.59834986]
[1740994991587,2.07514003,600.04,598.67,0.59834428]
[1740994991786,2.07514003,600.04,598.68,0.5983387]
[1740994991986,2.07514003,600.04,598.69,0.26427042]
[1740994992288,2.07514003,600.04,598.7,0.33405712]
[1740994992485,2.07514003,600.04,598.71,0.26427042]
[1740994993593,2.07514003,600.04,598.72,0.33404596]
[1740994993793,2.07514003,600.04,598.73,0.26427042]
[1740994993990,2.07514003,600.04,598.74,0.26427042]
[1740994994192,2.07514003,600.04,598.75,0.26427042]
[1740994994391,2.07514003,600.04,598.72,0.33404596]
[1740994994594,2.07514003,600.04,598.73,0.26437049]
[1740994994793,2.07514003,600.04,598.74,0.26437049]
[1740994995093,2.07514003,600.04,598.75,0.26437049]
[1740994995294,2.07514003,600.04,598.76,0.26437049]
[1740994995489,2.07514003,600.04,598.77,0.26437049]
[1740994995688,2.07514003,600.04,598.78,0.26437049]
[1740994995890,2.07514003,600.04,598.79,0.26437049]
[1740994996191,2.07514003,600.04,598.8,0.59827729]
[1740994996496,2.07514003,600.04,598.81,0.59827171]
[1740994996700,2.07514003,600.04,598.82,0.59826614]
[1740994996902,2.07514003,600.04,598.83,0.59826056]
[1740994997096,2.07514003,600.04,598.84,0.59825498]
[1740994997295,2.07514003,600.04,598.85,0.5982494]
[1740994997499,2.07514003,600.04,598.86,0.59824383]
[1740994997700,2.07514003,600.04,598.87,0.26427596]
[1740994999696,5.41007544,600.04,598.87,0.26427596]
[1740994999899,3.33493541,600.03,598.87,0.26427596]
[1740995000098,3.66825207,600.03,598.87,0.26427596]
[1740995000304,3.00122905,600.03,598.87,0.26427596]
[1740995000503,2.66791239,600.02,598.87,0.26427596]
[1740995000702,2.66791239,600.02,598.86,0.33396787]
[1740995000902,0.33332777,600.01,598.87,0.26453363]
[1740995003108,4.40951612,600.0,598.87,0.26453363]
[1740995003508,3.33498366,599.99,598.87,0.26453363]
[1740995003707,2.66791239,599.98,598.87,0.26453363]
[1740995003908,0.33334444,599.98,598.86,0.33396787]
[1740995004208,3.00125683,599.98,598.87,0.26444256]
[1740995004408,0.33334444,599.98,598.87,0.26444256]
[1740995005504,2.66791239,599.97,598.87,0.26444256]
[1740995005709,2.66791239,599.96,598.87,0.26444256]
[1740995005906,3.0012735,599.95,598.87,0.26444256]
[1740995006107,0.33336667,599.94,598.87,0.26444256]
[1740995008710,0.33336667,599.94,598.88,0.26435284]
[1740995008910,0.33336667,599.94,598.89,0.26435284]
[1740995009209,0.33336667,599.94,598.9,0.26435284]
[1740995009415,0.33336667,599.94,598.91,0.26435284]
[1740995009714,0.33336667,599.94,598.92,0.26435284]
[1740995010017,0.33336667,599.94,598.93,0.26435284]
[1740995010210,0.33336667,599.94,598.94,0.26433286]
[1740995010414,0.33336667,599.94,598.86,0.33396787]
[1740995010715,0.33336667,599.94,598.87,0.2643425]
[1740995010915,0.33336667,599.94,598.88,0.33395671]
[1740995011219,0.33336667,599.94,598.89,0.2643425]
[1740995011612,0.33336667,599.94,598.97,1.2343549]
[1740995011813,0.33336667,599.94,598.98,0.2643425]
[1740995012116,1.74152383,599.93,598.98,0.2643425]
[1740995013419,1.74152383,599.93,598.99,0.26451189]
[1740995013619,1.74152383,599.93,598.97,1.2343549]
[1740995013620,1.74152383,599.93,598.98,0.26451189]
[1740995013815,1.74152383,599.93,598.99,0.26451189]
[1740995016314,1.74152383,599.93,599.0,0.26451189]
[1740995016716,1.74152383,599.93,598.93,1.2343549]
[1740995016717,1.74152383,599.93,599.01,0.26451189]
[1740995016914,1.74152383,599.93,599.02,0.26451189]
[1740995017116,1.74152383,599.93,598.93,1.2343549]
[1740995017117,1.74152383,599.93,599.03,0.26451189]
[1740995017315,1.74152383,599.93,598.94,0.26451189]
[1740995017523,3.33512852,600.26,598.95,0.26451189]
[1740995017821,2.66810282,600.25,598.96,0.26451189]
[1740995018020,2.66810282,600.24,598.94,0.26451189]
[1740995018216,2.66810282,600.23,598.95,0.26451189]
[1740995018421,2.66810282,600.22,598.96,0.26451189]
[1740995018622,2.66810282,600.21,598.97,0.26451189]
[1740995018822,2.66810282,600.2,598.98,0.26451189]
[1740995019024,2.66810282,600.19,598.75,0.26451189]
[1740995019221,2.66810282,600.18,598.76,0.26451189]
[1740995019522,2.66810282,600.17,598.77,0.26451189]
[1740995019723,2.66810282,600.16,598.78,0.26450661]
[1740995019924,2.66810282,600.15,598.75,0.26450661]
[1740995020126,2.66810282,600.23,598.76,0.26450661]
[1740995020320,2.66810282,600.22,598.77,0.26450661]
[1740995020519,0.6670257,600.24,598.78,0.26450661]
[1740995020520,2.66810282,600.21,598.78,0.26450661]
[1740995020723,2.66810282,600.2,598.75,0.26450661]
[1740995020924,2.66810282,600.19,598.76,0.26450661]
[1740995021124,2.66810282,600.18,598.77,0.26450661]
[1740995021323,2.66810282,600.17,598.78,0.26451256]
[1740995021517,2.66776098,600.16,598.69,0.26451256]
[1740995021817,2.66776098,600.19,598.7,0.26451256]
[1740995022024,2.66776098,600.18,598.71,0.26451256]
[1740995022224,2.66776098,600.17,598.72,0.26451256]
[1740995022527,2.66776098,600.16,598.73,0.26451256]
[1740995022825,2.66776098,600.15,598.74,0.26451256]
[1740995023025,2.66776098,600.19,598.69,0.26451256]
[1740995023225,2.66776098,600.18,598.7,0.26451256]
[1740995023419,2.66776098,600.17,598.71,0.26451256]
[1740995023621,2.66776098,600.16,598.72,0.26451256]
[1740995023823,2.66776098,600.19,598.88,1.2343549]
[1740995024025,1.74145847,600.15,598.89,0.26451256]
[1740995025820,1.74145847,600.15,598.95,1.2343549]
[1740995026023,1.74145847,600.15,598.96,0.26451256]
[1740995026622,3.33466944,600.2,598.96,0.26451256]
[1740995026826,2.66776098,600.19,598.96,0.26451256]
[1740995027023,2.66776098,600.18,598.96,0.26451256]
[1740995027224,2.66776098,600.17,598.96,1.49886746]
[1740995027426,2.66776098,600.16,598.97,0.26451256]
[1740995027629,2.66776098,600.15,598.96,1.2343549]
[1740995027820,2.66776098,600.14,598.97,0.26453854]
[1740995028026,2.66776098,600.13,598.97,0.26453854]
[1740995028223,2.66776098,600.12,598.97,0.26453854]
[1740995028428,2.66776098,600.11,598.97,0.26453854]
[1740995028727,2.66776098,600.17,598.97,0.26453854]
[1740995028929,2.66776098,600.16,598.97,0.26453854]
[1740995029229,2.66776098,600.15,598.97,0.26453854]
[1740995029429,2.66776098,600.14,598.97,0.26453854]
[1740995029629,2.66776098,600.13,598.97,0.26453854]
[1740995029828,2.66776098,600.12,599.05,1.2343549]
[1740995030027,2.66776098,600.11,599.06,0.26453854]
[1740995030228,3.33466944,600.12,599.06,0.26453854]
[1740995030428,2.66776098,600.11,599.06,0.26453854]
[1740995030630,2.66776098,600.1,599.06,0.26453854]
[1740995030930,2.66776098,600.09,599.06,0.26453854]
[1740995031125,2.66776098,600.11,599.06,0.26453854]
[1740995031327,0.66690846,600.12,599.08,1.2343549]
[1740995031328,2.66776098,600.1,599.08,1.2343549]
[1740995031525,2.66776098,600.09,599.09,0.26453854]
[1740995031725,2.66776098,600.11,599.09,0.26453854]
[1740995031931,2.66776098,600.1,599.09,0.26453854]
[1740995032132,2.66776098,600.09,599.09,0.26453854]
[1740995032330,2.66776098,600.08,599.09,0.26453854]
[1740995032531,2.66776098,600.07,599.09,0.26453854]
[1740995032730,2.66776098,600.11,599.09,0.26453854]
[1740995032928,2.66776098,600.21,599.09,0.26453854]
[1740995033123,8.23877174,602.3,599.09,0.26453854]
[1740995033124,1.74121885,600.06,599.09,0.26453854]
[1740995033324,1.65626614,600.26,599.13,1.2343549]
[1740995033530,1.74122611,600.05,599.14,0.26453854]
[1740995033926,1.65626614,600.27,599.14,0.26453854]
[1740995033927,3.33455011,600.23,599.14,0.26453854]
[1740995034125,1.74118981,600.04,599.13,1.2343549]
[1740995034331,3.33455011,600.21,599.14,0.26447205]
[1740995034525,1.74118981,600.03,599.14,0.26447205]
[1740995034726,3.33455011,600.19,599.14,0.26447205]
[1740995034928,2.66764009,600.26,599.14,0.26447205]
[1740995035134,1.65864611,600.24,599.14,0.26447205]
[1740995035328,4.3262862,600.23,599.14,0.26447205]
[1740995035633,2.66764009,600.22,599.14,0.26447205]
[1740995035830,2.66764009,600.21,599.15,0.26447205]
[1740995036135,2.66764009,600.2,599.16,0.26447205]
[1740995036335,2.66764009,600.19,599.08,0.26447205]
[1740995036528,2.66764009,600.18,599.09,0.26447205]
[1740995036732,2.66764009,600.17,599.08,0.26447205]
[1740995036930,2.66764009,600.16,599.09,0.26447205]
[1740995037129,2.66764009,600.15,599.1,0.26447205]
[1740995037334,2.66764009,600.14,599.11,0.26447205]
[1740995037534,2.66764009,600.19,599.08,0.26447205]
[1740995037830,2.66764009,600.18,599.09,0.26447205]
[1740995038037,2.66764009,600.17,599.07,0.26447205]
[1740995038232,2.66767828,600.16,599.08,0.26447205]
[1740995038432,2.66767828,600.19,599.09,0.26447205]
[1740995038633,2.66767828,600.18,599.1,0.26447205]
[1740995038830,2.66767828,600.17,599.06,1.2343549]
[1740995039032,2.66767828,600.16,599.07,0.26435323]
[1740995039629,2.66767828,600.16,599.06,1.2343549]
[1740995039937,2.66767828,600.15,599.07,0.26428882]
[1740995040140,2.66767828,600.16,599.07,0.26428882]
[1740995040332,1.741139,600.17,599.08,0.33384522]
[1740995040535,1.741139,600.17,599.09,0.26428882]
[1740995040735,1.741139,600.17,599.1,0.33383408]
[1740995040938,1.741139,600.17,599.11,0.26428882]
[1740995041538,3.33449219,600.37,599.11,0.26428882]
[1740995041738,3.00081173,600.36,599.11,0.26428882]
[1740995041938,1.7409285,600.16,599.11,0.26428882]
[1740995042138,3.33449219,600.34,599.11,0.26428882]
[1740995042336,1.74105189,600.15,599.11,0.26428882]
[1740995042536,3.33449219,600.32,599.11,0.26428882]
[1740995042739,2.66767828,600.31,599.11,0.26428882]
[1740995042933,1.74105914,600.14,599.11,0.26428882]
[1740995043133,3.33449219,600.29,599.11,0.26428882]
[1740995043337,0.3331501,600.33,599.11,0.26428882]
[1740995043338,1.7410664,600.13,599.11,0.26428882]
[1740995043639,3.33449219,600.27,599.11,0.26428882]
[1740995043839,3.00086723,600.26,599.11,0.26428882]
[1740995044040,3.00087278,600.25,599.11,0.26428882]
[1740995044243,2.66767828,600.24,599.11,0.26428882]
[1740995044442,2.66767828,600.23,599.11,0.26428882]
[1740995044643,2.66767828,600.22,599.11,0.26428882]
[1740995044843,1.74089946,600.22,599.11,0.26428882]
[1740995046343,1.74089946,600.22,599.12,0.26462411]
[1740995046543,1.74089946,600.22,599.11,0.26462411]
[1740995046740,1.74089946,600.22,599.12,0.26462411]
[1740995047645,0.3331945,600.25,599.12,0.26462411]
[1740995047836,1.74088495,600.21,599.12,0.26462411]
[1740995048242,2.66767828,600.2,599.12,0.26462411]
[1740995048442,2.66767828,600.19,599.12,0.26462411]
[1740995048645,2.66767828,600.18,599.12,0.26462411]
[1740995048839,2.66767828,600.19,599.12,0.26462411]
[1740995049344,2.66767828,600.18,599.12,0.26462411]
[1740995049539,2.66767828,600.17,599.13,0.26478194]
[1740995049741,0.33324446,600.16,599.14,0.26478194]
[1740995049943,0.33324446,600.16,599.15,0.26478194]
[1740995049944,2.66785413,600.15,599.15,0.26478194]
[1740995050142,2.66785413,600.14,599.12,0.26478194]
[1740995050339,2.66785413,600.13,599.13,0.26478194]
[1740995050644,2.66785413,600.12,599.14,0.26478194]
[1740995050944,2.66785413,600.11,599.15,0.26478194]
[1740995051143,2.66785413,600.1,599.16,0.26478194]
[1740995051342,2.66785413,600.09,599.17,0.26478194]
[1740995051539,0.33325002,600.15,599.11,0.33382851]
[1740995051540,2.66785413,600.08,599.12,0.26478194]
[1740995051845,1.00021355,600.15,599.12,0.26478194]
[1740995051846,2.66785413,600.07,599.12,0.26478194]
[1740995052144,2.66785413,600.06,599.12,0.26478194]
[1740995052347,3.00115968,600.05,599.12,0.26478194]
[1740995052537,2.66785413,600.04,599.12,0.26478194]
[1740995052740,2.66785413,600.03,599.12,0.26478194]
[1740995052944,2.66785413,600.02,599.12,0.26478194]
[1740995053144,2.66785413,600.01,599.12,0.26478194]
[1740995053342,2.66785413,600.04,599.12,0.26478194]
[1740995053543,0.33330555,600.05,599.12,0.26478194]
[1740995053544,2.66785413,600.03,599.12,0.26478194]
[1740995053743,2.66785413,600.02,599.12,0.26478194]
[1740995054051,2.66785413,600.04,599.12,0.26478194]
[1740995054250,2.66785413,600.03,599.13,0.26434399]
[1740995054451,2.66785413,600.02,599.12,0.26434399]
[1740995054650,2.66785413,600.01,599.13,0.26434399]
[1740995054851,2.66785413,600.04,599.12,0.26434399]
[1740995055050,2.66785413,600.03,599.13,0.26434399]
[1740995055250,2.66785413,600.02,599.14,0.26434399]
[1740995055452,2.66785413,600.01,599.12,0.26434399]
[1740995055650,2.66785413,600.0,599.12,0.26434399]
[1740995055845,2.66785413,599.99,599.12,0.26434399]
[1740995056051,2.66785413,599.98,599.12,0.26434399]
[1740995056249,2.66785413,599.97,599.12,0.26434399]
[1740995056452,2.66785413,599.96,599.12,0.26434399]
[1740995056651,2.66785413,599.95,599.12,0.26434399]
[1740995056953,2.66785413,599.94,599.12,0.26434399]
[1740995057150,2.66785413,599.93,599.12,0.26434399]
[1740995057350,2.66785413,599.92,599.12,0.26434399]
[1740995057553,2.66785413,599.91,599.12,0.26434399]
[1740995057747,2.66785413,599.9,599.12,0.26434399]
[1740995057951,2.66785413,599.89,599.12,0.26434399]
[1740995058246,2.66785413,599.88,599.12,0.26434399]
[1740995058451,2.66785413,599.87,599.12,0.26434399]
[1740995058651,2.66785413,599.88,599.12,0.26434399]
[1740995059051,2.66785413,599.87,599.12,0.26434399]
[1740995059247,2.66785413,599.88,599.12,0.26434399]
[1740995059549,2.66785413,599.87,599.12,0.26434399]
[1740995059755,3.3349502,600.03,599.12,0.26434399]
[1740995059951,1.74158194,599.87,599.12,0.26434399]
[1740995060148,3.3349502,600.01,599.12,0.26434399]
[1740995060350,1.7415311,599.86,599.12,0.26434399]
[1740995060547,3.3349502,599.99,599.12,0.26434399]
[1740995060750,2.66785413,599.98,599.12,0.26434399]
[1740995060951,1.74153836,599.85,599.12,0.26434399]
[1740995061147,2.66785413,599.96,599.12,0.26434399]
[1740995061352,1.74148752,599.84,599.12,0.26434399]
[1740995061654,2.66785413,600.0,599.12,0.26434399]
[1740995061847,1.74149478,599.83,599.12,0.26434399]
[1740995062350,1.74140038,599.83,599.13,0.26445464]
[1740995062548,1.74140038,599.83,599.12,0.26445464]
[1740995062747,0.33332222,600.02,599.13,0.26445464]
[1740995062957,0.33332222,600.02,599.12,0.26445464]
[1740995063148,0.33332222,600.02,599.14,0.26445464]
[1740995063349,0.33332222,600.02,599.15,0.26445464]
[1740995063554,0.33332222,600.02,599.12,0.26445464]
[1740995063756,0.33332222,600.02,599.13,0.26445464]
[1740995064054,1.74078335,600.01,599.13,0.26445464]
[1740995064251,1.74078335,600.01,599.14,0.26445464]
[1740995064451,1.74078335,600.01,599.15,0.26445464]